[Event "XXIX Cracovia 2018"]
[Site "Krakow"]
[Date "2018.12.31"]
[Round "6"]
[White "Nikitin, Aleksander I"]
[Black "Budnik, Mateusz"]
[Result "0-1"]
[ECO "A05"]
[WhiteElo "2031"]
[BlackElo "2053"]
[Annotator "NA"]
[PlyCount "124"]
[EventDate "2018.12.27"]
[EventType "swiss"]
[EventCountry "POL"]
[SourceTitle "playchess.com"]
[Source "ChessBase"]
[SourceQuality "1"]
[TimeControl "40/5400+30:1800+30"]

1. Nf3 {[%emt 0:00:00]} Nf6 {[%emt 0:04:17]} 2. g3 {[%emt 0:00:00]} g6 {[%emt 0:00:13]} 3. Bg2 {[%emt 0:00:00]} Bg7 {[%emt 0:00:07]} 4. O-O {[%emt 0:00:00]} O-O {[%emt 0:00:07]} 5. d3 {[%emt 0:00:05]} d5 {[%emt 0:00:28]} 6. Nbd2 {[%emt 0:00:17]} c6 {[%emt 0:01:29]} 7. e4 {[%emt 0:00:41]} e6 {[%emt 0:01:12]} 8. Re1 {[%emt 0:01:20]} b6 {[%emt 0:02:17]} 9. e5 {[%emt 0:03:55]} Nfd7 {[%emt 0:00:09]} 10. d4 {[%emt 0:00:25]} c5 {[%emt 0:00:20]} 11. c3 {[%emt 0:00:07]} Nc6 {[%emt 0:01:27]} 12. a3 {[%emt 0:00:43]} c4 {[%emt 0:03:48]} 13. Nf1 {[%emt 0:01:45]} b5 {[%emt 0:02:00]} 14. h4 $16 {[%emt 0:00:27]} a5 {[%emt 0:02:42]} 15. Bg5 {[%emt 0:02:28]} Qb6 {[%emt 0:06:49]} 16. Qd2 {[%emt 0:02:00]} Rb8 {[%emt 0:14:03]} 17. N1h2 {[%emt 0:10:58]} f6 {[%emt 0:07:28]} 18. exf6 {[%emt 0:03:02]} Nxf6 {[%emt 0:01:33]} 19. Bxf6 {[%emt 0:01:28]} Rxf6 {[%emt 0:03:17]} 20. Ng5 {[%emt 0:24:13]} Nd8 {[%emt 0:06:23]} 21. h5 {[%emt 0:06:05]} gxh5 {[%emt 0:07:44]} 22. Bf3 {[%emt 0:11:10]} h6 {[%emt 0:02:02]} 23. Nh3 {[%emt 0:01:22]} h4 {[%emt 0:03:14]} 24. Nf4 {[%emt 0:11:04]} hxg3 {[%emt 0:01:23]} 25. fxg3 {[%emt 0:00:14]} Nf7 {[%emt 0:03:05]} 26. Nh5 {[%emt 0:05:39]} Rg6 {[%emt 0:01:33]} 27. Qc2 {[%emt 0:05:44]} Rg5 {[%emt 0:02:06]} 28. Kh1 {[%emt 0:01:29]} Bd7 {[%emt 0:02:27]} 29. g4 {[%emt 0:01:46]} Qd6 {[%emt 0:04:46]} 30. Qd2 {[%emt 0:01:17]} e5 {[%emt 0:01:20]} 31. Nxg7 {[%emt 0:00:42]} Kxg7 {[%emt 0:00:27]} 32. dxe5 {[%emt 0:01:19]} Nxe5 {[%emt 0:01:07]} 33. Qd4 {[%emt 0:00:38]} Qf6 {[%emt 0:02:09]} 34. Rf1 {[%emt 0:02:36]} Nxf3 {[%emt 0:01:26]} 35. Qxf6+ {[%emt 0:00:15]} Kxf6 {[%emt 0:00:05]} 36. Nxf3 {[%emt 0:00:11]} Rg7 {[%emt 0:02:23]} 37. Rae1 {[%emt 0:01:12]} Kg6 {[%emt 0:02:14]} 38. Ne5+ {[%emt 0:01:15]} Kh7 {[%emt 0:01:04]} 39. Nxd7 {[%emt 0:00:52]} Rxd7 {[%emt 0:00:07]} 40. Re6 {[%emt 0:00:00]} Rg8 {[%emt 0:00:00]} 41. Rb6 {[%emt 0:05:06]} Rxg4 {[%emt 0:03:05]} 42. Rf2 {[%emt 0:06:17]} d4 {[%emt 0:03:23]} 43. cxd4 {[%emt 0:00:48]} Rg5 {[%emt 0:01:47]} 44. Rf4 {[%emt 0:09:07]} Rdg7 {[%emt 0:00:40]} 45. Rf2 {[%emt 0:00:49]} Re7 {[%emt 0:01:23]} 46. a4 {[%emt 0:03:21]} b4 {[%emt 0:00:58]} 47. Rc6 {[%emt 0:00:13]} Re1+ {[%emt 0:01:11]} 48. Kh2 {[%emt 0:00:06]} Re4 {[%emt 0:00:40]} 49. Rc7+ {[%emt 0:02:04]} Kg6 {[%emt 0:01:19]} 50. Rc6+ {[%emt 0:02:13]} Kh5 {[%emt 0:01:46]} 51. Kh1 {[%emt 0:01:22]} Rxd4 {[%emt 0:01:06]} 52. Rh2+ {[%emt 0:00:08]} Kg4 {[%emt 0:01:48]} 53. Rcxh6 {[%emt 0:03:31]} Rd1+ {[%emt 0:01:24]} 54. Kg2 {[%emt 0:00:03]} c3 {[%emt 0:02:17]} 55. bxc3 {[%emt 0:00:44]} b3 {[%emt 0:01:14]} 56. R6h4+ {[%emt 0:01:36]} Kf5+ {[%emt 0:00:04]} 57. Kf3 {[%emt 0:00:17]} Rd3+ {[%emt 0:03:14]} 58. Ke2 {[%emt 0:00:06]} Rxc3 {[%emt 0:00:50]} 59. Kd1 {[%emt 0:01:52]} Rg1+ {[%emt 0:01:49]} 60. Kd2 {[%emt 0:00:07]} Rc2+ {[%emt 0:00:12]} 61. Kd3 {[%emt 0:00:24]} Rg3+ {[%emt 0:00:24]} 62. Kd4 {[%emt 0:00:17]} b2 {[%emt 0:03:04]} 0-1

[Event "XXIX Cracovia 2018"]
[Site "Krakow"]
[Date "2018.12.31"]
[Round "6"]
[White "Smal, Tobiasz"]
[Black "Kvaratskhelia, Dimitri"]
[Result "1/2-1/2"]
[ECO "E00"]
[WhiteElo "1958"]
[BlackElo "1996"]
[Annotator "NA"]
[PlyCount "88"]
[EventDate "2018.12.27"]
[EventType "swiss"]
[EventCountry "POL"]
[SourceTitle "playchess.com"]
[Source "ChessBase"]
[SourceQuality "1"]
[TimeControl "40/5400+30:1800+30"]

1. d4 Nf6 2. c4 e6 3. Nc3 c5 4. Nf3 cxd4 5. Nxd4 a6 6. e4 d6 7. Be3 Be7 8. Be2 O-O 9. O-O Nc6 10. Rc1 Bd7 11. Qd2 Rc8 12. f3 Nxd4 13. Bxd4 Bc6 14. Rfd1 Nd7 15. b4 b6 16. Bf1 f5 17. exf5 Rxf5 18. Re1 Nf8 $16 19. Bd3 Rh5 20. Ne2 Bg5 21. Be3 Bxe3+ 22. Qxe3 Qh4 23. Qf4 Qxf4 24. Nxf4 Rh6 25. Be4 g5 26. Bxc6 Rxc6 27. Nd3 Rh4 28. Re4 Rxe4 29. fxe4 Kf7 30. Kf2 Ke7 31. Ke3 Nd7 32. Kd4 e5+ 33. Ke3 Ke6 34. Nb2 b5 35. a4 Nb6 36. axb5 axb5 37. Kd3 bxc4+ 38. Nxc4 d5 39. exd5+ Nxd5 40. b5 Rc5 41. Rb1 Nf4+ 42. Kc3 Nd5+ 43. Kd3 Nf4+ 44. Kc3 Nd5+ 1/2-1/2

[Event "XXIX Cracovia 2018"]
[Site "Krakow"]
[Date "2018.12.31"]
[Round "6"]
[White "Rysaev, Danial"]
[Black "Jankowiak, Tomasz"]
[Result "0-1"]
[ECO "D48"]
[WhiteElo "1945"]
[BlackElo "2070"]
[Annotator "NA"]
[PlyCount "56"]
[EventDate "2018.12.27"]
[EventType "swiss"]
[EventCountry "POL"]
[SourceTitle "playchess.com"]
[Source "ChessBase"]
[SourceQuality "1"]
[TimeControl "40/5400+30:1800+30"]

1. d4 d5 2. c4 c6 3. Nf3 Nf6 4. e3 e6 5. Nc3 Nbd7 6. Bd3 dxc4 7. Bxc4 b5 8. Bd3 a6 9. e4 Bb7 10. e5 Nd5 11. Nxd5 cxd5 12. O-O Be7 13. g3 O-O 14. Re1 b4 15. h4 a5 16. Kg2 Ba6 17. Bb1 Rc8 18. Ng5 g6 19. Nxh7 Rxc1 20. Qxc1 Kxh7 21. h5 Kg7 22. hxg6 fxg6 23. Qc6 Qb6 24. Qxd7 Qxd4 25. Qxe7+ Rf7 26. Qg5 Qxf2+ 27. Kh3 Bf1+ 28. Kg4 Qf3+ 0-1

[Event "XXIX Cracovia 2018"]
[Site "Krakow"]
[Date "2019.01.02"]
[Round "7"]
[White "Janik, Igor"]
[Black "Biriukov, Nikolai"]
[Result "1/2-1/2"]
[ECO "C50"]
[WhiteElo "2476"]
[BlackElo "2365"]
[Annotator "RC"]
[PlyCount "117"]
[EventDate "2018.12.27"]
[EventType "swiss"]
[EventCountry "POL"]
[SourceTitle "playchess.com"]
[Source "ChessBase"]
[SourceQuality "1"]
[TimeControl "40/5400+30:1800+30"]

1. e4 {[%emt 0:00:00]} e5 {[%emt 0:00:00]} 2. Nf3 {[%emt 0:00:00]} Nc6 {[%emt 0:00:00]} 3. Bc4 {[%emt 0:01:46]} Bc5 {[%emt 0:04:52]} 4. O-O {[%emt 0:00:14]} Nf6 {[%emt 0:00:04]} 5. d3 {[%emt 0:00:10]} O-O {[%emt 0:01:03]} 6. Re1 {[%emt 0:00:05]} d6 {[%emt 0:04:37]} 7. c3 {[%emt 0:00:14]} a6 {[%emt 0:02:01]} 8. Bb3 {[%emt 0:00:25]} Ba7 {[%emt 0:01:18]} 9. Nbd2 {[%emt 0:00:55]} Ne7 {[%emt 0:09:04]} 10. Nf1 {[%emt 0:01:12]} Ng6 {[%emt 0:00:26]} 11. Ng3 {[%emt 0:00:15]} Be6 {[%emt 0:06:54]} 12. Be3 {[%emt 0:00:57]} Qd7 {[%emt 0:07:54]} 13. Bxa7 {[%emt 0:03:33]} Rxa7 {[%emt 0:00:42]} 14. d4 {[%emt 0:00:12]} Bxb3 {[%emt 0:05:30]} 15. Qxb3 {[%emt 0:01:46]} Qb5 {[%emt 0:00:24]} 16. Qc2 {[%emt 0:02:14]} Re8 {[%emt 0:05:45]} 17. c4 {[%emt 0:02:17]} Qd7 {[%emt 0:04:09]} 18. d5 {[%emt 0:00:30]} b6 {[%emt 0:00:29]} 19. Nd2 {[%emt 0:01:56]} Nf4 {[%emt 0:05:05]} 20. a3 {[%emt 0:04:24]} a5 {[%emt 0:00:44]} 21. b3 {[%emt 0:01:33]} h5 {[%emt 0:00:33]} 22. f3 {[%emt 0:01:46]} Nh7 {[%emt 0:02:28]} 23. Ne2 {[%emt 0:02:20]} Nxe2+ {[%emt 0:01:01]} 24. Rxe2 {[%emt 0:00:01]} Nf8 {[%emt 0:00:10]} 25. Nb1 {[%emt 0:02:41]} Ng6 {[%emt 0:00:26]} 26. Nc3 {[%emt 0:00:20]} Rea8 {[%emt 0:06:17]} 27. Nb5 {[%emt 0:02:22]} Ra6 {[%emt 0:00:05]} 28. Rd2 {[%emt 0:01:03]} Ne7 {[%emt 0:00:15]} 29. Rf1 {[%emt 0:01:08]} Rf8 {[%emt 0:02:08]} 30. Kf2 {[%emt 0:02:03]} f5 {[%emt 0:00:30]} 31. Ke1 {[%emt 0:00:23]} Raa8 {[%emt 0:00:15]} 32. Re2 {[%emt 0:00:52]} Rf6 {[%emt 0:00:31]} 33. Kd1 {[%emt 0:01:49]} Raf8 {[%emt 0:03:36]} 34. Rfe1 {[%emt 0:00:44]} Ng6 {[%emt 0:00:29]} 35. Kc1 {[%emt 0:00:35]} Nh4 {[%emt 0:00:46]} 36. Kb2 {[%emt 0:01:48]} Rg6 {[%emt 0:00:44]} 37. exf5 {[%emt 0:03:35]} Rxf5 {[%emt 0:00:17]} 38. Rd2 {[%emt 0:00:48]} Rgf6 {[%emt 0:06:55]} 39. Re4 {[%emt 0:03:04]} Ng6 {[%emt 0:03:18]} 40. b4 {[%emt 0:00:00]} axb4 {[%emt 0:00:00]} 41. axb4 {[%emt 0:02:36]} Nf4 {[%emt 0:00:36]} 42. Qa4 {[%emt 0:01:53]} Kh7 {[%emt 0:01:01]} 43. Qa8 {[%emt 0:01:14]} Rf7 {[%emt 0:00:19]} 44. Qc6 {[%emt 0:02:04]} Qe7 {[%emt 0:10:39]} 45. Nd4 {[%emt 0:17:57]} R5f6 {[%emt 0:02:07]} 46. g3 {[%emt 0:01:23]} Qd8 {[%emt 0:00:53]} 47. gxf4 {[%emt 0:01:07]} exd4 {[%emt 0:00:04]} 48. Re8 {[%emt 0:01:33]} Qd7 {[%emt 0:00:09]} 49. Qxd7 {[%emt 0:00:05]} Rxd7 {[%emt 0:00:01]} 50. Rxd4 {[%emt 0:00:14]} Rdf7 {[%emt 0:04:23]} 51. Ree4 {[%emt 0:00:34]} Rg6 {[%emt 0:00:19]} 52. Kc2 {[%emt 0:00:53]} h4 {[%emt 0:08:33]} 53. Kd2 {[%emt 0:00:25]} Rg2+ {[%emt 0:00:59]} 54. Re2 {[%emt 0:00:12]} h3 {[%emt 0:00:14]} 55. Ke3 {[%emt 0:01:13]} Rg1 {[%emt 0:00:29]} 56. f5 {[%emt 0:05:01]} Rxf5 {[%emt 0:01:23]} 57. Rh4+ {[%emt 0:00:10]} Kg8 {[%emt 0:00:05]} 58. Rxh3 {[%emt 0:00:04]} Rc1 {[%emt 0:00:13]} 59. Rh4 {[%emt 0:00:24]} 1/2-1/2

[Event "XXIX Cracovia 2018"]
[Site "Krakow"]
[Date "2019.01.02"]
[Round "7"]
[White "Molenda, Marcin"]
[Black "Jaroch, Karol"]
[Result "1-0"]
[ECO "E08"]
[WhiteElo "2383"]
[BlackElo "2259"]
[Annotator "NA"]
[PlyCount "59"]
[EventDate "2018.12.27"]
[EventType "swiss"]
[EventCountry "POL"]
[SourceTitle "playchess.com"]
[Source "ChessBase"]
[SourceQuality "1"]
[TimeControl "40/5400+30:1800+30"]

1. d4 e6 2. c4 Nf6 3. g3 d5 4. Nf3 Be7 5. Bg2 O-O 6. O-O Nbd7 7. Qc2 c5 8. Rd1 dxc4 9. Nbd2 Nd5 10. Nxc4 b5 11. Nce5 Bb7 12. Nxd7 Qxd7 13. dxc5 Qc7 14. Ng5 g6 15. Ne4 Rfc8 16. Bh6 f5 17. Rxd5 Bxd5 18. Qc3 Kf7 19. Ng5+ Bxg5 20. Qg7+ Ke8 21. Qf8+ Kd7 22. Qf7+ Be7 23. Bxd5 exd5 24. Qxd5+ Ke8 25. Qg8+ Bf8 26. Qxf8+ Kd7 27. Rd1+ Kc6 28. Qf6+ Kb7 29. Bf4 Rd8 30. c6+ 1-0

[Event "XXIX Cracovia 2018"]
[Site "Krakow"]
[Date "2019.01.02"]
[Round "7"]
[White "Goumas, Georgios"]
[Black "Dzierzak, Radoslaw"]
[Result "1/2-1/2"]
[ECO "B12"]
[WhiteElo "2378"]
[BlackElo "2283"]
[Annotator "NA"]
[PlyCount "46"]
[EventDate "2018.12.27"]
[EventType "swiss"]
[EventCountry "POL"]
[SourceTitle "playchess.com"]
[Source "ChessBase"]
[SourceQuality "1"]
[TimeControl "40/5400+30:1800+30"]

1. e4 {[%emt 0:10:36]} c6 {[%emt 0:00:00]} 2. d4 {[%emt 0:00:43]} d5 {[%emt 0:00:00]} 3. e5 {[%emt 0:00:05]} c5 {[%emt 0:00:14]} 4. dxc5 {[%emt 0:00:15]} e6 {[%emt 0:00:09]} 5. a3 {[%emt 0:00:05]} Bxc5 {[%emt 0:00:13]} 6. Nf3 {[%emt 0:00:11]} Nc6 {[%emt 0:00:53]} 7. b4 {[%emt 0:00:25]} Bb6 {[%emt 0:00:08]} 8. Bb2 {[%emt 0:00:06]} Nge7 {[%emt 0:00:54]} 9. Bd3 {[%emt 0:00:39]} Ng6 {[%emt 0:00:42]} 10. O-O {[%emt 0:00:10]} O-O {[%emt 0:00:48]} 11. Re1 {[%emt 0:00:19]} f6 {[%emt 0:00:28]} 12. exf6 {[%emt 0:00:16]} gxf6 {[%emt 0:01:32]} 13. c4 {[%emt 0:00:24]} Nf4 {[%emt 0:00:16]} 14. cxd5 {[%emt 0:01:17]} Qxd5 {[%emt 0:00:12]} 15. Be4 {[%emt 0:02:29]} Qxd1 {[%emt 0:01:56]} 16. Rxd1 {[%emt 0:00:06]} e5 {[%emt 0:03:05]} 17. Nc3 {[%emt 0:00:48]} Be6 {[%emt 0:08:45]} 18. Na4 {[%emt 0:13:09]} Rfd8 {[%emt 0:05:48]} 19. Nxb6 {[%emt 0:01:35]} axb6 {[%emt 0:00:29]} 20. g3 {[%emt 0:07:07]} Bd5 {[%emt 0:06:56]} 21. Nd2 {[%emt 0:04:45]} Bxe4 {[%emt 0:07:09]} 22. Nxe4 {[%emt 0:00:14]} Nd3 {[%emt 0:00:11]} 23. Bc3 {[%emt 0:06:27]} f5 {[%emt 0:02:32]} 1/2-1/2

[Event "XXIX Cracovia 2018"]
[Site "Krakow"]
[Date "2019.01.02"]
[Round "7"]
[White "Mosesov, Danylo"]
[Black "Roshka, Yevgeniy"]
[Result "1-0"]
[ECO "B06"]
[WhiteElo "2343"]
[BlackElo "2293"]
[Annotator "NA"]
[PlyCount "105"]
[EventDate "2018.12.27"]
[EventType "swiss"]
[EventCountry "POL"]
[SourceTitle "playchess.com"]
[Source "ChessBase"]
[SourceQuality "1"]
[TimeControl "40/5400+30:1800+30"]

1. e4 {[%emt 0:00:00]} g6 {[%emt 0:05:09]} 2. d4 {[%emt 0:00:00]} Bg7 {[%emt 0:00:34]} 3. Nc3 {[%emt 0:00:00]} d6 {[%emt 0:01:43]} 4. Be3 {[%emt 0:00:09]} Nf6 {[%emt 0:01:39]} 5. f3 {[%emt 0:01:08]} c6 {[%emt 0:00:06]} 6. Qd2 {[%emt 0:01:51]} b5 {[%emt 0:01:47]} 7. O-O-O {[%emt 0:00:36]} O-O {[%emt 0:14:08]} 8. g4 {[%emt 0:05:17]} Qa5 {[%emt 0:00:20]} 9. Kb1 {[%emt 0:00:38]} b4 {[%emt 0:02:15]} 10. Nce2 {[%emt 0:00:29]} Nbd7 {[%emt 0:03:59]} 11. g5 {[%emt 0:05:22]} Ne8 {[%emt 0:05:49]} 12. Nc1 {[%emt 0:01:36]} Nc7 {[%emt 0:00:42]} 13. h4 {[%emt 0:05:08]} Ba6 {[%emt 0:04:23]} 14. h5 {[%emt 0:06:18]} Bxf1 {[%emt 0:00:22]} 15. Rxf1 {[%emt 0:00:03]} Rfd8 {[%emt 0:02:12]} 16. hxg6 {[%emt 0:02:35]} hxg6 {[%emt 0:00:53]} 17. f4 {[%emt 0:02:35]} d5 {[%emt 0:14:31]} 18. f5 {[%emt 0:04:34]} dxe4 {[%emt 0:00:17]} 19. fxg6 {[%emt 0:12:35]} fxg6 {[%emt 0:00:20]} 20. Qh2 {[%emt 0:00:15]} Nf8 {[%emt 0:00:02]} 21. Bf4 {[%emt 0:13:53]} Rxd4 {[%emt 0:09:16]} 22. Bxc7 {[%emt 0:00:22]} Qxg5 {[%emt 0:00:02]} 23. Nge2 {[%emt 0:01:46]} Rd5 {[%emt 0:00:11]} 24. Nb3 {[%emt 0:06:59]} c5 {[%emt 0:03:03]} 25. Bf4 {[%emt 0:00:45]} Qf6 {[%emt 0:00:01]} 26. Bc1 {[%emt 0:00:05]} Rf5 {[%emt 0:00:09]} 27. Rxf5 {[%emt 0:01:57]} gxf5 {[%emt 0:00:02]} 28. Nxc5 {[%emt 0:00:37]} Rc8 {[%emt 0:00:06]} 29. Nb3 {[%emt 0:00:04]} Ng6 {[%emt 0:01:53]} 30. Rf1 {[%emt 0:07:31]} Nh4 {[%emt 0:02:02]} 31. Nf4 {[%emt 0:04:55]} Nf3 {[%emt 0:01:57]} 32. Qh3 {[%emt 0:00:12]} Qf7 {[%emt 0:03:10]} 33. Rh1 {[%emt 0:02:05]} Rc6 {[%emt 0:01:55]} 34. Nh5 {[%emt 0:03:16]} Be5 {[%emt 0:02:08]} 35. Bf4 {[%emt 0:03:18]} Bxf4 36. Nxf4 Kf8 {[%emt 0:00:48]} 37. Nd4 {[%emt 0:02:26]} Nxd4 {[%emt 0:02:24]} 38. Qh8+ {[%emt 0:00:01]} Qg8 {[%emt 0:00:07]} 39. Qxd4 {[%emt 0:00:04]} Rd6 {[%emt 0:01:11]} 40. Qe5 {[%emt 0:00:00]} Qh7 {[%emt 0:00:00]} 41. Rg1 {[%emt 0:04:41]} Ke8 {[%emt 0:01:13]} 42. b3 {[%emt 0:03:39]} a6 {[%emt 0:02:09]} 43. Rg7 {[%emt 0:04:06]} Qh4 {[%emt 0:00:43]} 44. Rg8+ {[%emt 0:01:37]} Kd7 {[%emt 0:00:08]} 45. Qxf5+ {[%emt 0:00:03]} Kc7 {[%emt 0:00:11]} 46. Qc5+ {[%emt 0:01:02]} Kb7 {[%emt 0:00:44]} 47. Qxb4+ {[%emt 0:00:22]} Rb6 {[%emt 0:00:15]} 48. Qxe4+ {[%emt 0:00:07]} Rc6 {[%emt 0:00:06]} 49. Rg6 {[%emt 0:00:55]} Qxf4 {[%emt 0:00:49]} 50. Qxc6+ {[%emt 0:00:34]} Ka7 {[%emt 0:00:05]} 51. Qd7+ {[%emt 0:00:13]} Kb8 {[%emt 0:00:10]} 52. Rg8+ {[%emt 0:00:05]} Qf8 {[%emt 0:00:01]} 53. Rxf8# {[%emt 0:00:09]} 1-0

[Event "XXIX Cracovia 2018"]
[Site "Krakow"]
[Date "2019.01.02"]
[Round "7"]
[White "Paszewski, Mateusz"]
[Black "Marszalek, Maciej"]
[Result "1/2-1/2"]
[ECO "C54"]
[WhiteElo "2342"]
[BlackElo "2280"]
[Annotator "NA"]
[PlyCount "120"]
[EventDate "2018.12.27"]
[EventType "swiss"]
[EventCountry "POL"]
[SourceTitle "playchess.com"]
[Source "ChessBase"]
[SourceQuality "1"]
[TimeControl "40/5400+30:1800+30"]

1. e4 {[%emt 0:00:00]} e5 {[%emt 0:00:00]} 2. Nf3 {[%emt 0:00:03]} Nc6 {[%emt 0:00:00]} 3. Bc4 {[%emt 0:00:04]} Bc5 {[%emt 0:00:36]} 4. c3 {[%emt 0:00:54]} Nf6 {[%emt 0:00:50]} 5. d4 {[%emt 0:00:03]} exd4 {[%emt 0:01:05]} 6. e5 {[%emt 0:00:19]} d5 {[%emt 0:03:48]} 7. Bb5 {[%emt 0:00:45]} Ne4 8. cxd4 {[%emt 0:00:06]} Bb6 {[%emt 0:01:41]} 9. Nc3 {[%emt 0:01:53]} O-O {[%emt 0:03:35]} 10. Be3 {[%emt 0:01:05]} f5 {[%emt 0:14:46]} 11. exf6 {[%emt 0:00:47]} Nxc3 {[%emt 0:03:09]} 12. bxc3 {[%emt 0:01:30]} Qxf6 {[%emt 0:00:26]} 13. O-O {[%emt 0:15:08]} Bg4 {[%emt 0:06:41]} 14. Be2 {[%emt 0:00:15]} Bxf3 {[%emt 0:04:31]} 15. Bxf3 {[%emt 0:01:18]} Ne7 {[%emt 0:00:18]} 16. Qd2 {[%emt 0:09:59]} Qg6 {[%emt 0:05:05]} 17. Bf4 {[%emt 0:07:28]} c6 {[%emt 0:01:44]} 18. Rae1 {[%emt 0:06:48]} Rae8 {[%emt 0:00:59]} 19. Bd1 {[%emt 0:01:52]} Nf5 {[%emt 0:06:01]} 20. Bc2 {[%emt 0:01:54]} Qf7 {[%emt 0:04:17]} 21. Qd3 {[%emt 0:08:35]} g6 {[%emt 0:01:09]} 22. Be5 {[%emt 0:04:21]} Bc7 {[%emt 0:03:14]} 23. f4 {[%emt 0:00:59]} Qd7 {[%emt 0:02:34]} 24. Qh3 {[%emt 0:03:50]} Bxe5 {[%emt 0:02:25]} 25. fxe5 {[%emt 0:00:37]} Qe6 {[%emt 0:00:54]} 26. Bxf5 {[%emt 0:12:08]} Rxf5 {[%emt 0:00:16]} 27. Rxf5 {[%emt 0:00:04]} gxf5 {[%emt 0:00:15]} 28. Rf1 {[%emt 0:04:48]} Rf8 {[%emt 0:00:05]} 29. Rf4 {[%emt 0:00:08]} c5 {[%emt 0:02:14]} 30. Qf3 {[%emt 0:02:58]} cxd4 {[%emt 0:03:03]} 31. cxd4 {[%emt 0:00:19]} Rf7 {[%emt 0:00:39]} 32. h3 {[%emt 0:00:37]} b5 {[%emt 0:01:47]} 33. Qc3 {[%emt 0:07:52]} Qh6 {[%emt 0:02:31]} 34. Qe3 {[%emt 0:01:45]} Qb6 {[%emt 0:01:05]} 35. e6 {[%emt 0:03:53]} Re7 {[%emt 0:00:13]} 36. Rxf5 {[%emt 0:00:51]} Rxe6 {[%emt 0:00:11]} 37. Qg3+ {[%emt 0:01:39]} Rg6 {[%emt 0:00:16]} 38. Qe5 {[%emt 0:00:06]} Qd8 {[%emt 0:03:11]} 39. Qxd5+ {[%emt 0:01:04]} Qxd5 {[%emt 0:00:05]} 40. Rxd5 {[%emt 0:00:00]} Ra6 {[%emt 0:00:00]} 41. Rxb5 {[%emt 0:03:13]} Rxa2 {[%emt 0:00:56]} 42. Rb7 {[%emt 0:02:37]} Rd2 {[%emt 0:01:30]} 43. Rxa7 {[%emt 0:02:54]} Rxd4 {[%emt 0:00:06]} 44. Kf2 {[%emt 0:00:26]} Rb4 {[%emt 0:00:36]} 45. Re7 {[%emt 0:00:48]} Ra4 {[%emt 0:00:24]} 46. Kg3 {[%emt 0:00:07]} Rb4 {[%emt 0:00:09]} 47. h4 {[%emt 0:00:24]} Ra4 {[%emt 0:01:25]} 48. Rb7 {[%emt 0:00:52]} Rc4 {[%emt 0:00:06]} 49. Ra7 {[%emt 0:00:20]} Rb4 {[%emt 0:00:05]} 50. Re7 {[%emt 0:01:13]} Ra4 {[%emt 0:00:54]} 51. h5 {[%emt 0:01:18]} Rb4 {[%emt 0:03:23]} 52. Kf3 {[%emt 0:01:06]} Ra4 {[%emt 0:07:24]} 53. g4 {[%emt 0:01:45]} h6 {[%emt 0:01:07]} 54. Re4 {[%emt 0:00:34]} Ra7 {[%emt 0:00:44]} 55. Re6 {[%emt 0:00:20]} Kg7 {[%emt 0:00:14]} 56. Kf4 {[%emt 0:00:10]} Rb7 {[%emt 0:00:34]} 57. Rg6+ {[%emt 0:00:42]} Kh7 {[%emt 0:00:01]} 58. Rd6 {[%emt 0:00:16]} Kg7 {[%emt 0:01:15]} 59. Ke5 {[%emt 0:01:54]} Re7+ {[%emt 0:00:46]} 60. Re6 {[%emt 0:00:25]} Kf7 {[%emt 0:03:41]} 1/2-1/2

[Event "XXIX Cracovia 2018"]
[Site "Krakow"]
[Date "2019.01.02"]
[Round "7"]
[White "Zylka, Stanislaw"]
[Black "Lis, Mateusz"]
[Result "1-0"]
[ECO "B48"]
[WhiteElo "2305"]
[BlackElo "2123"]
[Annotator "NA"]
[PlyCount "100"]
[EventDate "2018.12.27"]
[EventType "swiss"]
[EventCountry "POL"]
[SourceTitle "playchess.com"]
[Source "ChessBase"]
[SourceQuality "1"]
[TimeControl "40/5400+30:1800+30"]

1. e4 {[%emt 0:00:00]} c5 {[%emt 0:00:00]} 2. Nf3 {[%emt 0:00:01]} e6 {[%emt 0:00:00]} 3. d4 {[%emt 0:00:07]} cxd4 {[%emt 0:00:00]} 4. Nxd4 {[%emt 0:00:09]} Nc6 {[%emt 0:00:00]} 5. Nc3 {[%emt 0:00:06]} Qc7 {[%emt 0:00:19]} 6. Be3 {[%emt 0:00:08]} a6 {[%emt 0:00:07]} 7. Qf3 {[%emt 0:00:05]} Nf6 {[%emt 0:01:24]} 8. O-O-O {[%emt 0:00:19]} Bb4 {[%emt 0:05:21]} 9. Nxc6 {[%emt 0:00:09]} dxc6 {[%emt 0:06:18]} 10. Bd4 {[%emt 0:00:17]} e5 {[%emt 0:07:14]} 11. Qg3 {[%emt 0:00:25]} Bd6 {[%emt 0:02:37]} 12. Qxg7 {[%emt 0:01:19]} Rg8 {[%emt 0:00:30]} 13. Qxf6 {[%emt 0:00:18]} exd4 {[%emt 0:00:07]} 14. Qxd4 {[%emt 0:00:29]} Be5 {[%emt 0:00:20]} 15. Qd3 {[%emt 0:01:21]} Bd7 {[%emt 0:05:10]} 16. g3 {[%emt 0:01:22]} O-O-O {[%emt 0:00:34]} 17. Qe3 {[%emt 0:01:46]} f5 {[%emt 0:03:11]} 18. Na4 {[%emt 0:13:56]} Kb8 {[%emt 0:06:01]} 19. Nc5 {[%emt 0:05:07]} Bc8 {[%emt 0:09:30]} 20. Bc4 {[%emt 0:00:50]} Rge8 {[%emt 0:01:48]} 21. f4 {[%emt 0:05:42]} Bd6 {[%emt 0:09:53]} 22. e5 {[%emt 0:00:20]} Qa5 {[%emt 0:00:42]} 23. Nxa6+ {[%emt 0:13:22]} Ka8 {[%emt 0:09:41]} 24. Rxd6 {[%emt 0:02:10]} Rxd6 {[%emt 0:10:38]} 25. Nc7+ {[%emt 0:00:23]} Qxc7 {[%emt 0:01:15]} 26. Qa3+ {[%emt 0:01:46]} Kb8 {[%emt 0:00:05]} 27. Qxd6 {[%emt 0:00:10]} Qxd6 {[%emt 0:00:21]} 28. exd6 {[%emt 0:00:02]} b5 {[%emt 0:00:41]} 29. Bd3 {[%emt 0:00:01]} Rd8 {[%emt 0:00:26]} 30. Re1 {[%emt 0:00:08]} Rxd6 {[%emt 0:00:04]} 31. Re8 {[%emt 0:00:34]} Kc7 {[%emt 0:01:03]} 32. Re7+ {[%emt 0:00:14]} Rd7 {[%emt 0:00:24]} 33. Re5 {[%emt 0:00:10]} Rf7 {[%emt 0:00:07]} 34. Kd2 {[%emt 0:00:15]} Kd6 {[%emt 0:00:09]} 35. Ke3 {[%emt 0:00:17]} Rf6 {[%emt 0:01:00]} 36. Kf2 {[%emt 0:03:37]} Bd7 {[%emt 0:03:15]} 37. c4 {[%emt 0:00:37]} bxc4 {[%emt 0:00:51]} 38. Bxc4 {[%emt 0:00:02]} c5 {[%emt 0:00:18]} 39. Bd3 {[%emt 0:00:13]} Be6 {[%emt 0:00:07]} 40. a4 {[%emt 0:00:00]} Rf8 {[%emt 0:00:00]} 41. Bb5 {[%emt 0:02:53]} Rb8 {[%emt 0:01:52]} 42. Ke3 {[%emt 0:01:45]} Rb7 {[%emt 0:00:13]} 43. Kd3 {[%emt 0:00:37]} h5 {[%emt 0:03:53]} 44. Kc3 {[%emt 0:00:52]} h4 {[%emt 0:00:37]} 45. b4 {[%emt 0:00:32]} cxb4+ {[%emt 0:00:28]} 46. Kxb4 {[%emt 0:00:02]} Rc7 {[%emt 0:04:15]} 47. a5 {[%emt 0:01:03]} Rc1 {[%emt 0:03:32]} 48. a6 {[%emt 0:00:25]} hxg3 {[%emt 0:01:28]} 49. hxg3 {[%emt 0:00:06]} Bd5 {[%emt 0:00:04]} 50. Rxd5+ {[%emt 0:01:01]} Kxd5 1-0